[Event "Mitropa Cup Women 2019"]
[Site "Radenci"]
[Date "2019.06.02"]
[Round "7.3"]
[White "Choisy, Mathilde"]
[Black "Koubova, Anna Marie"]
[Result "1/2-1/2"]
[ECO "B45"]
[WhiteElo "2113"]
[BlackElo "1975"]
[Annotator "ChessBase"]
[PlyCount "81"]
[EventDate "2019.05.27"]
[EventType "team-tourn"]
[EventCountry "SLO"]
[SourceTitle "playchess.com"]
[Source "ChessBase"]
[SourceQuality "1"]
[WhiteTeam "France"]
[BlackTeam "Czech Republic"]
[WhiteTeamCountry "FRA"]
[BlackTeamCountry "CZE"]
[TimeControl "40/5400+30:1800+30"]

1. e4 {[%emt 0:00:00]} c5 {[%emt 0:00:00]} 2. Nf3 {[%emt 0:00:00]} e6 {[%emt 0:00:00]} 3. d4 {[%emt 0:00:18]} cxd4 {[%emt 0:00:00]} 4. Nxd4 {[%emt 0:00:03]} Nf6 {[%emt 0:00:02]} 5. Nc3 {[%emt 0:00:10]} Nc6 {[%emt 0:00:11]} 6. Nxc6 {[%emt 0:01:34]} bxc6 {[%emt 0:00:08]} 7. e5 {[%emt 0:00:06]} Nd5 {[%emt 0:00:08]} 8. Ne4 {[%emt 0:00:07]} Qc7 {[%emt 0:00:10]} 9. f4 {[%emt 0:00:12]} Qb6 {[%emt 0:00:20]} 10. c4 {[%emt 0:00:59]} Bb4+ {[%emt 0:00:07]} 11. Ke2 {[%emt 0:00:36]} f5 {[%emt 0:00:21]} 12. exf6 {[%emt 0:04:41]} Nxf6 {[%emt 0:00:14]} 13. Be3 {[%emt 0:00:22]} Qd8 {[%emt 0:09:13]} 14. Nd6+ {[%emt 0:01:17]} Bxd6 {[%emt 0:00:43]} 15. Qxd6 {[%emt 0:00:05]} c5 {[%emt 0:26:57]} 16. Rd1 {[%emt 0:02:57]} Bb7 {[%emt 0:01:46]} 17. Qxc5 {[%emt 0:00:49]} Bc6 {[%emt 0:02:04]} 18. Rg1 {[%emt 0:21:20]} Rc8 {[%emt 0:11:16]} 19. Qe5 {[%emt 0:07:42]} O-O {[%emt 0:16:11]} 20. g4 {[%emt 0:02:30]} Bb7 {[%emt 0:03:00]} 21. g5 {[%emt 0:17:36]} Ne4 {[%emt 0:20:35]} 22. Bh3 {[%emt 0:02:02]} Re8 {[%emt 0:00:12]} 23. Rd4 {[%emt 0:15:40]} Qc7 {[%emt 0:03:29]} 24. Qxc7 {[%emt 0:01:32]} Rxc7 {[%emt 0:00:06]} 25. Bg2 {[%emt 0:02:09]} Nc5 {[%emt 0:01:29]} 26. Rd2 {[%emt 0:03:28]} Bxg2 {[%emt 0:01:11]} 27. Rxg2 {[%emt 0:00:09]} a5 {[%emt 0:00:40]} 28. Kf3 {[%emt 0:02:20]} a4 {[%emt 0:01:29]} 29. Rg1 {[%emt 0:04:50]} Rb8 {[%emt 0:00:41]} 30. Rc1 {[%emt 0:03:54]} Rb4 {[%emt 0:00:50]} 31. Bxc5 {[%emt 0:01:21]} Rxc5 {[%emt 0:00:04]} 32. Ke3 {[%emt 0:02:22]} d5 {[%emt 0:01:06]} 33. Rdc2 {[%emt 0:01:13]} dxc4 {[%emt 0:00:16]} 34. h4 {[%emt 0:01:07]} Rcb5 {[%emt 0:01:03]} 35. Rxc4 {[%emt 0:00:42]} Rxb2 {[%emt 0:00:39]} 36. Rxa4 {[%emt 0:00:30]} Rb7 {[%emt 0:00:15]} 37. Ra8+ {[%emt 0:01:01]} Kf7 {[%emt 0:00:33]} 38. h5 {[%emt 0:00:27]} Rh2 {[%emt 0:00:18]} 39. g6+ {[%emt 0:00:40]} hxg6 {[%emt 0:00:18]} 40. hxg6+ {[%emt 0:00:00]} Kxg6 {[%emt 0:00:00]} 41. Rg1+ {[%emt 0:11:50]} 1/2-1/2

[Event "Mitropa Cup Women 2019"]
[Site "Radenci"]
[Date "2019.06.02"]
[Round "7.4"]
[White "Pribylova, Sofie"]
[Black "Djidjeli, Sarah"]
[Result "1/2-1/2"]
[ECO "B23"]
[WhiteElo "2069"]
[BlackElo "2012"]
[Annotator "NA"]
[PlyCount "83"]
[EventDate "2019.05.27"]
[EventType "team-tourn"]
[EventCountry "SLO"]
[SourceTitle "playchess.com"]
[Source "ChessBase"]
[SourceQuality "1"]
[WhiteTeam "Czech Republic"]
[BlackTeam "France"]
[WhiteTeamCountry "CZE"]
[BlackTeamCountry "FRA"]
[TimeControl "40/5400+30:1800+30"]

1. e4 {[%emt 0:00:00]} c5 {[%emt 0:00:00]} 2. Nc3 {[%emt 0:00:00]} Nc6 {[%emt 0:00:00]} 3. Bb5 {[%emt 0:00:00]} Nd4 {[%emt 0:00:00]} 4. Bc4 {[%emt 0:00:00]} e6 {[%emt 0:00:23]} 5. Nge2 {[%emt 0:01:13]} Nf6 {[%emt 0:01:59]} 6. O-O {[%emt 0:10:28]} a6 {[%emt 0:04:37]} 7. a4 {[%emt 0:01:28]} Qc7 {[%emt 0:14:28]} 8. d3 {[%emt 0:02:47]} b6 {[%emt 0:06:31]} 9. Nxd4 {[%emt 0:06:03]} cxd4 {[%emt 0:00:08]} 10. Ne2 {[%emt 0:00:11]} Nxe4 {[%emt 0:02:28]} 11. Bxe6 {[%emt 0:07:56]} dxe6 {[%emt 0:03:04]} 12. dxe4 {[%emt 0:00:07]} e5 {[%emt 0:09:10]} 13. c3 {[%emt 0:12:08]} dxc3 {[%emt 0:01:01]} 14. Nxc3 {[%emt 0:00:04]} Be6 {[%emt 0:02:52]} 15. Nd5 {[%emt 0:05:12]} Bxd5 {[%emt 0:01:46]} 16. Qxd5 {[%emt 0:00:21]} Rd8 {[%emt 0:00:35]} 17. Qb3 {[%emt 0:00:34]} Bc5 {[%emt 0:02:48]} 18. Bg5 {[%emt 0:10:47]} Rd7 {[%emt 0:07:34]} 19. Rad1 {[%emt 0:01:29]} O-O {[%emt 0:02:08]} 20. Qg3 {[%emt 0:01:56]} Rxd1 {[%emt 0:09:18]} 21. Rxd1 {[%emt 0:00:30]} Qc6 {[%emt 0:00:56]} 22. Qg4 {[%emt 0:07:03]} h6 {[%emt 0:07:27]} 23. Bc1 {[%emt 0:00:46]} Bd4 {[%emt 0:02:13]} 24. h3 {[%emt 0:01:55]} Kh8 {[%emt 0:00:14]} 25. b3 {[%emt 0:08:58]} Qc2 {[%emt 0:00:29]} 26. Qf3 {[%emt 0:04:53]} Rc8 {[%emt 0:06:02]} 27. Rf1 {[%emt 0:03:31]} Rc6 {[%emt 0:00:41]} 28. Qxf7 {[%emt 0:03:35]} Rf6 {[%emt 0:00:09]} 29. Qe8+ {[%emt 0:02:10]} Kh7 {[%emt 0:00:05]} 30. Be3 {[%emt 0:01:24]} Bxe3 {[%emt 0:00:38]} 31. fxe3 {[%emt 0:00:04]} Rxf1+ {[%emt 0:02:25]} 32. Kxf1 {[%emt 0:00:04]} Qxe4 {[%emt 0:00:15]} 33. Qe6 {[%emt 0:03:19]} Qxe3 {[%emt 0:03:51]} 34. Qf5+ {[%emt 0:00:11]} Kg8 {[%emt 0:00:06]} 35. Qe6+ {[%emt 0:01:21]} Kf8 {[%emt 0:00:16]} 36. Qc8+ {[%emt 0:01:22]} Ke7 {[%emt 0:01:20]} 37. Qc7+ {[%emt 0:01:17]} Kf6 {[%emt 0:01:53]} 38. Qd6+ {[%emt 0:00:42]} Kf7 {[%emt 0:01:29]} 39. Qd7+ {[%emt 0:00:18]} Kf6 {[%emt 0:00:38]} 40. Qd6+ {[%emt 0:00:00]} Kg5 {[%emt 0:00:00]} 41. Qe7+ {[%emt 0:02:19]} Kg6 {[%emt 0:13:03]} 42. Qe6+ {[%emt 0:01:17]} 1/2-1/2

[Event "Mitropa Cup Women 2019"]
[Site "Radenci"]
[Date "2019.06.02"]
[Round "7.5"]
[White "Unuk, Laura"]
[Black "Motycakova, Monika"]
[Result "1-0"]
[ECO "E04"]
[WhiteElo "2265"]
[BlackElo "2150"]
[Annotator "ChessBase"]
[PlyCount "57"]
[EventDate "2019.05.27"]
[EventType "team-tourn"]
[EventCountry "SLO"]
[SourceTitle "playchess.com"]
[Source "ChessBase"]
[SourceQuality "1"]
[WhiteTeam "Slovenia"]
[BlackTeam "Slovakia"]
[WhiteTeamCountry "SLO"]
[BlackTeamCountry "SVK"]
[TimeControl "40/5400+30:1800+30"]

1. d4 {[%emt 0:00:00]} Nf6 {[%emt 0:00:00]} 2. c4 {[%emt 0:03:42]} e6 {[%emt 0:00:00]} 3. Nf3 {[%emt 0:00:11]} d5 {[%emt 0:00:00]} 4. g3 {[%emt 0:05:27]} dxc4 {[%emt 0:00:13]} 5. Bg2 {[%emt 0:00:24]} a6 {[%emt 0:00:23]} 6. Ne5 {[%emt 0:00:58]} Bb4+ {[%emt 0:00:19]} 7. Nc3 {[%emt 0:00:41]} Nd5 {[%emt 0:00:15]} 8. Bd2 {[%emt 0:00:04]} b5 {[%emt 0:00:17]} 9. a4 {[%emt 0:01:46]} Bxc3 {[%emt 0:07:46]} 10. bxc3 {[%emt 0:00:04]} Bb7 {[%emt 0:00:16]} 11. e4 {[%emt 0:03:58]} Nf6 {[%emt 0:07:53]} 12. Qb1 {[%emt 0:02:42]} c5 {[%emt 0:09:03]} 13. axb5 {[%emt 0:01:53]} cxd4 {[%emt 0:02:52]} 14. Nxc4 {[%emt 0:15:52]} O-O {[%emt 0:08:55]} 15. Na5 {[%emt 0:04:31]} Qc8 {[%emt 0:18:39]} 16. cxd4 {[%emt 0:03:29]} axb5 {[%emt 0:01:55]} 17. O-O {[%emt 0:00:18]} Ba6 {[%emt 0:12:13]} 18. Bg5 {[%emt 0:14:29]} Ra7 {[%emt 0:03:18]} 19. Bxf6 {[%emt 0:04:03]} gxf6 {[%emt 0:00:08]} 20. d5 {[%emt 0:00:13]} Rc7 {[%emt 0:07:24]} 21. Bh3 {[%emt 0:01:22]} Re8 {[%emt 0:02:16]} 22. Rd1 {[%emt 0:03:46]} Kg7 {[%emt 0:05:53]} 23. Ra2 {[%emt 0:03:31]} Rc3 {[%emt 0:01:20]} 24. Nb3 {[%emt 0:07:26]} Qc4 {[%emt 0:06:09]} 25. Nd4 {[%emt 0:00:34]} exd5 {[%emt 0:01:37]} 26. Nf5+ {[%emt 0:02:58]} Kh8 {[%emt 0:00:41]} 27. Nd6 {[%emt 0:00:23]} Qc6 {[%emt 0:01:05]} 28. Nxe8 {[%emt 0:00:10]} Qxe8 {[%emt 0:00:34]} 29. exd5 {[%emt 0:00:26]} 1-0

[Event "Mitropa Cup Women 2019"]
[Site "Radenci"]
[Date "2019.06.02"]
[Round "7.6"]
[White "Ferkova, Dominika"]
[Black "Janzelj, Lara"]
[Result "0-1"]
[ECO "D19"]
[WhiteElo "2037"]
[BlackElo "2203"]
[Annotator "ChessBase"]
[PlyCount "122"]
[EventDate "2019.05.27"]
[EventType "team-tourn"]
[EventCountry "SLO"]
[SourceTitle "playchess.com"]
[Source "ChessBase"]
[SourceQuality "1"]
[WhiteTeam "Slovakia"]
[BlackTeam "Slovenia"]
[WhiteTeamCountry "SVK"]
[BlackTeamCountry "SLO"]
[TimeControl "40/5400+30:1800+30"]

1. d4 {[%emt 0:00:00]} d5 {[%emt 0:00:00]} 2. c4 {[%emt 0:00:00]} c6 {[%emt 0:00:00]} 3. Nf3 {[%emt 0:00:00]} Nf6 {[%emt 0:00:00]} 4. Nc3 {[%emt 0:00:06]} dxc4 {[%emt 0:00:00]} 5. a4 {[%emt 0:00:17]} Bf5 {[%emt 0:00:00]} 6. e3 {[%emt 0:00:11]} e6 {[%emt 0:00:04]} 7. Bxc4 {[%emt 0:00:16]} Bb4 {[%emt 0:00:04]} 8. O-O {[%emt 0:00:12]} O-O {[%emt 0:00:04]} 9. Qe2 {[%emt 0:00:10]} Bg4 {[%emt 0:00:05]} 10. Rd1 {[%emt 0:01:52]} Qa5 {[%emt 0:00:07]} 11. Bd2 {[%emt 0:19:52]} Qh5 {[%emt 0:00:54]} 12. e4 {[%emt 0:09:02]} c5 {[%emt 0:05:28]} 13. d5 {[%emt 0:19:55]} exd5 {[%emt 0:00:15]} 14. Nxd5 {[%emt 0:01:18]} Nxd5 {[%emt 0:00:11]} 15. Bxd5 {[%emt 0:00:43]} Nc6 {[%emt 0:00:54]} 16. Bxc6 {[%emt 0:03:08]} bxc6 {[%emt 0:00:03]} 17. Rac1 {[%emt 0:10:35]} Rac8 {[%emt 0:13:04]} 18. Bf4 {[%emt 0:05:19]} Rfe8 {[%emt 0:01:52]} 19. Qd3 {[%emt 0:09:23]} h6 {[%emt 0:01:42]} 20. h3 {[%emt 0:01:12]} Be6 {[%emt 0:02:16]} 21. Ne5 {[%emt 0:04:02]} Qh4 {[%emt 0:05:50]} 22. Qg3 {[%emt 0:05:56]} Qxg3 {[%emt 0:08:17]} 23. Bxg3 {[%emt 0:00:02]} Bb3 {[%emt 0:00:53]} 24. Rd7 {[%emt 0:01:04]} a5 {[%emt 0:00:52]} 25. Nd3 {[%emt 0:04:31]} Bd2 {[%emt 0:08:23]} 26. Ra1 {[%emt 0:01:03]} c4 {[%emt 0:02:23]} 27. Nc5 {[%emt 0:01:24]} Bb4 {[%emt 0:02:29]} 28. Nxb3 {[%emt 0:00:04]} cxb3 {[%emt 0:00:03]} 29. Rd3 {[%emt 0:00:58]} Rxe4 {[%emt 0:00:04]} 30. Rxb3 {[%emt 0:00:09]} Re2 {[%emt 0:00:55]} 31. Rb1 {[%emt 0:01:34]} c5 {[%emt 0:00:51]} 32. Bf4 {[%emt 0:00:53]} Re4 {[%emt 0:01:37]} 33. Bg3 {[%emt 0:00:37]} Rd8 {[%emt 0:00:35]} 34. Rc1 {[%emt 0:00:31]} Rd2 {[%emt 0:00:42]} 35. Kf1 {[%emt 0:00:35]} h5 {[%emt 0:00:42]} 36. Re3 {[%emt 0:00:26]} Rxe3 {[%emt 0:02:55]} 37. fxe3 {[%emt 0:00:01]} Rxb2 {[%emt 0:01:36]} 38. Bd6 {[%emt 0:00:37]} c4 {[%emt 0:00:10]} 39. Be5 {[%emt 0:00:05]} Rb3 {[%emt 0:00:12]} 40. Rxc4 {[%emt 0:00:00]} Rxe3 {[%emt 0:00:00]} 41. Bb2 {[%emt 0:11:05]} Rb3 {[%emt 0:01:43]} 42. Rc8+ {[%emt 0:00:28]} Kh7 {[%emt 0:00:24]} 43. Rc2 {[%emt 0:00:15]} Kg6 {[%emt 0:00:21]} 44. Ke2 {[%emt 0:02:34]} f6 {[%emt 0:00:21]} 45. Bc1 {[%emt 0:01:33]} Rb1 {[%emt 0:05:39]} 46. Bb2 {[%emt 0:00:51]} Kf5 {[%emt 0:01:46]} 47. Kf3 {[%emt 0:06:01]} h4 {[%emt 0:02:14]} 48. Ke2 {[%emt 0:02:16]} Ke4 {[%emt 0:02:24]} 49. Rc4+ {[%emt 0:00:12]} Kd5 {[%emt 0:00:07]} 50. Rc2 {[%emt 0:00:07]} Re1+ {[%emt 0:02:55]} 51. Kf3 {[%emt 0:01:52]} Rb1 {[%emt 0:01:40]} 52. Ke2 {[%emt 0:02:33]} Ke6 {[%emt 0:01:16]} 53. Rc6+ {[%emt 0:01:31]} Kf5 {[%emt 0:00:16]} 54. Rc2 {[%emt 0:00:09]} g5 {[%emt 0:01:39]} 55. Kd3 {[%emt 0:02:06]} Kg6 {[%emt 0:00:39]} 56. Ke2 {[%emt 0:03:55]} f5 {[%emt 0:01:26]} 57. Kf3 {[%emt 0:02:01]} Kh5 {[%emt 0:00:26]} 58. g3 {[%emt 0:00:12]} hxg3 {[%emt 0:02:10]} 59. Kxg3 {[%emt 0:00:02]} Rd1 {[%emt 0:00:47]} 60. Bc1 {[%emt 0:00:34]} Rd4 {[%emt 0:01:01]} 61. Be3 {[%emt 0:00:43]} f4+ {[%emt 0:00:09]} 0-1

[Event "Mitropa Cup Women 2019"]
[Site "Radenci"]
[Date "2019.06.02"]
[Round "7.7"]
[White "Urh, Zala"]
[Black "Sankova, Stella"]
[Result "1/2-1/2"]
[ECO "E22"]
[WhiteElo "2099"]
[BlackElo "2013"]
[Annotator "NA"]
[PlyCount "66"]
[EventDate "2019.05.27"]
[EventType "team-tourn"]
[EventCountry "SLO"]
[SourceTitle "playchess.com"]
[Source "ChessBase"]
[SourceQuality "1"]
[WhiteTeam "Slovenia"]
[BlackTeam "Slovakia"]
[WhiteTeamCountry "SLO"]
[BlackTeamCountry "SVK"]
[TimeControl "40/5400+30:1800+30"]

1. d4 {[%emt 0:00:00]} Nf6 {[%emt 0:00:00]} 2. c4 {[%emt 0:00:00]} e6 {[%emt 0:00:00]} 3. Nf3 {[%emt 0:00:00]} d5 {[%emt 0:00:00]} 4. Nc3 {[%emt 0:00:56]} Bb4 {[%emt 0:00:00]} 5. Qb3 {[%emt 0:00:09]} Nc6 {[%emt 0:01:11]} 6. e3 {[%emt 0:03:01]} O-O {[%emt 0:08:09]} 7. a3 {[%emt 0:01:27]} dxc4 {[%emt 0:02:13]} 8. Bxc4 {[%emt 0:01:45]} Bd6 {[%emt 0:00:06]} 9. Be2 {[%emt 0:03:11]} e5 {[%emt 0:08:18]} 10. dxe5 {[%emt 0:03:00]} Nxe5 {[%emt 0:00:30]} 11. O-O {[%emt 0:00:22]} c6 {[%emt 0:05:08]} 12. Rd1 {[%emt 0:03:12]} Qe7 {[%emt 0:06:59]} 13. Qc2 {[%emt 0:11:11]} Nxf3+ {[%emt 0:18:20]} 14. Bxf3 {[%emt 0:00:14]} Bg4 {[%emt 0:00:53]} 15. Bxg4 {[%emt 0:08:31]} Nxg4 {[%emt 0:00:02]} 16. h3 {[%emt 0:01:23]} Nf6 {[%emt 0:01:17]} 17. Ne2 {[%emt 0:01:34]} Rad8 {[%emt 0:03:32]} 18. Bd2 {[%emt 0:02:47]} Qe5 {[%emt 0:06:07]} 19. Ng3 {[%emt 0:02:03]} Nd5 {[%emt 0:06:11]} 20. Be1 {[%emt 0:06:23]} Kh8 {[%emt 0:07:45]} 21. Rd3 {[%emt 0:02:38]} Qe6 {[%emt 0:03:19]} 22. Nf1 {[%emt 0:02:20]} Be5 {[%emt 0:04:19]} 23. Rad1 {[%emt 0:01:29]} f5 {[%emt 0:01:55]} 24. Nd2 {[%emt 0:03:12]} Bc7 {[%emt 0:03:22]} 25. Nf3 {[%emt 0:03:22]} Bb6 {[%emt 0:03:43]} 26. b4 {[%emt 0:04:56]} f4 {[%emt 0:05:11]} 27. exf4 {[%emt 0:12:51]} Rxf4 {[%emt 0:00:56]} 28. Bc3 {[%emt 0:05:06]} Rdf8 {[%emt 0:01:35]} 29. Bd4 {[%emt 0:03:10]} Qg6 {[%emt 0:01:13]} 30. Bxb6 {[%emt 0:02:11]} axb6 {[%emt 0:00:06]} 31. Re1 {[%emt 0:04:32]} b5 {[%emt 0:01:30]} 32. Rd2 {[%emt 0:02:49]} Qxc2 {[%emt 0:00:44]} 33. Rxc2 {[%emt 0:00:01]} Kg8 {[%emt 0:00:22]} 1/2-1/2

[Event "Mitropa Cup Women 2019"]
[Site "Radenci"]
[Date "2019.06.02"]
[Round "7.8"]
[White "Milcova, Zuzana"]
[Black "Kuhar, Larisa"]
[Result "1/2-1/2"]
[ECO "B06"]
[WhiteElo "2093"]
[BlackElo "1930"]
[Annotator "NA RC"]
[PlyCount "144"]
[EventDate "2019.05.27"]
[EventType "team-tourn"]
[EventCountry "SLO"]
[SourceTitle "playchess.com"]
[Source "ChessBase"]
[SourceQuality "1"]
[WhiteTeam "Slovakia"]
[BlackTeam "Slovenia"]
[WhiteTeamCountry "SVK"]
[BlackTeamCountry "SLO"]
[TimeControl "40/5400+30:1800+30"]

1. e4 {[%emt 0:00:00]} c5 {[%emt 0:00:00]} 2. c3 {[%emt 0:00:00]} d5 {[%emt 0:00:00]} 3. exd5 {[%emt 0:00:00]} Qxd5 {[%emt 0:00:00]} 4. d4 {[%emt 0:00:00]} g6 {[%emt 0:00:07]} 5. Nf3 {[%emt 0:00:05]} Bg7 {[%emt 0:00:12]} 6. Be3 {[%emt 0:01:45]} cxd4 {[%emt 0:00:27]} 7. cxd4 {[%emt 0:02:31]} Qa5+ {[%emt 0:01:09]} 8. Nc3 {[%emt 0:00:55]} Nh6 {[%emt 0:00:43] B06: Modern Defence} 9. Bc4 {[%emt 0:08:54]} O-O {[%emt 0:03:53]} 10. O-O {[%emt 0:05:26]} Bg4 {[%emt 0:10:01]} 11. Qd2 $146 {[%emt 0:28:16]} ({Predecessor:} 11. Qc1 Nf5 12. Ne5 Bxe5 13. dxe5 Nxe3 14. Qxe3 Nc6 15. e6 Bxe6 16. Bxe6 fxe6 17. Qxe6+ {½-½ (32) Berelowitsch,A (2541)-Almasi,Z (2672) Germany 2003}) 11... Nf5 {[%emt 0:15:25]} 12. Ne1 {[%emt 0:25:19]} Nc6 {[%emt 0:14:43]} 13. h3 {[%emt 0:01:08]} Nxe3 {[%emt 0:03:50]} 14. fxe3 {[%emt 0:00:19]} Bf5 {[%emt 0:05:54]} 15. Nf3 {[%emt 0:00:12]} Rac8 {[%emt 0:02:29]} 16. Bb3 {[%emt 0:00:54]} Rcd8 {[%emt 0:09:16]} 17. Qf2 {[%emt 0:03:57]} b5 {[%emt 0:05:13]} 18. Rad1 {[%emt 0:05:24]} b4 {[%emt 0:09:09]} 19. e4 {[%emt 0:00:25]} bxc3 {[%emt 0:03:13]} 20. exf5 {[%emt 0:00:05]} Qxf5 {[%emt 0:08:13]} 21. bxc3 {[%emt 0:00:11]} Na5 {[%emt 0:00:43]} 22. Bc2 {[%emt 0:02:20]} Qd5 {[%emt 0:00:06]} 23. Bd3 {[%emt 0:00:35]} Rc8 {[%emt 0:01:07]} 24. Rc1 {[%emt 0:02:07]} Rc7 {[%emt 0:01:09]} 25. Qe3 {[%emt 0:04:30]} Nc4 {[%emt 0:01:36]} 26. Bxc4 {[%emt 0:01:39]} Qxc4 {[%emt 0:00:11]} 27. Ne5 {[%emt 0:00:15]} Qxa2 {[%emt 0:01:44]} 28. Rf3 {[%emt 0:01:02]} Qe6 {[%emt 0:00:24]} 29. Ra1 {[%emt 0:02:57]} Bxe5 {[%emt 0:00:26]} 30. dxe5 {[%emt 0:00:04]} Qb6 {[%emt 0:00:23]} 31. Qxb6 {[%emt 0:00:41]} axb6 {[%emt 0:00:01]} 32. Ra6 {[%emt 0:00:47]} Rb7 {[%emt 0:00:40]} 33. Rd3 {[%emt 0:00:50]} Rc8 {[%emt 0:00:31]} 34. Kf2 {[%emt 0:00:44]} Rc5 {[%emt 0:00:40]} 35. Ra8+ {[%emt 0:00:23]} Kg7 {[%emt 0:00:05]} 36. Re3 {[%emt 0:00:12]} Rbc7 {[%emt 0:02:02]} 37. Ra3 {[%emt 0:00:28]} Rb5 {[%emt 0:01:16]} 38. g4 {[%emt 0:01:34]} Rcc5 {[%emt 0:01:07]} 39. e6 {[%emt 0:00:15]} Re5 {[%emt 0:00:38]} 40. exf7 {[%emt 0:00:00]} Rxe3 {[%emt 0:00:00]} 41. f8=Q+ {[%emt 0:05:30]} Kxf8 {[%emt 0:00:56]} 42. Ra8+ {[%emt 0:00:03]} Kf7 {[%emt 0:01:48]} 43. Kxe3 {[%emt 0:00:04]} Rb1 {[%emt 0:06:37]} 44. Rh8 {[%emt 0:04:42]} Kg7 {[%emt 0:00:33]} 45. Re8 {[%emt 0:00:43]} Re1+ {[%emt 0:02:22]} 46. Kf4 {[%emt 0:10:04]} Kf6 {[%emt 0:06:23]} 47. g5+ {[%emt 0:02:50]} Kf7 {[%emt 0:02:08]} 48. Rh8 {[%emt 0:01:51]} Kg7 {[%emt 0:01:23]} 49. Re8 {[%emt 0:01:17]} h6 {[%emt 0:01:55]} 50. gxh6+ {[%emt 0:02:48]} Kxh6 {[%emt 0:00:08]} 51. h4 {[%emt 0:00:41]} Rc1 {[%emt 0:04:19]} 52. Rc8 {[%emt 0:04:49]} Kg7 {[%emt 0:02:39]} 53. Rc6 {[%emt 0:00:15]} b5 {[%emt 0:01:44]} 54. Rb6 {[%emt 0:01:09]} Rxc3 {[%emt 0:00:13]} 55. Rxb5 {[%emt 0:00:06]} Kf6 {[%emt 0:01:07]} 56. Rb4 {[%emt 0:00:53]} Rc1 {[%emt 0:00:29]} 57. Rb6+ {[%emt 0:00:56]} e6 {[%emt 0:00:11]} 58. Ra6 {[%emt 0:00:28]} Rc4+ {[%emt 0:00:10]} 59. Kg3 {[%emt 0:00:05]} Kf5 {[%emt 0:00:10]} 60. Ra3 {[%emt 0:00:58]} Rg4+ {[%emt 0:01:45]} 61. Kh3 $1 {[%emt 0:00:13]} e5 {[%emt 0:01:25]} 62. Ra8 {[%emt 0:01:35]} Rd4 {[%emt 0:00:15]} 63. Rf8+ {[%emt 0:00:23]} Ke6 {[%emt 0:01:54]} 64. Re8+ {[%emt 0:00:34]} Kf6 {[%emt 0:00:32]} 65. Rf8+ {[%emt 0:00:07]} Ke7 {[%emt 0:00:50]} 66. Rg8 {[%emt 0:00:35]} Kf7 $11 {[%emt 0:00:06]} 67. Ra8 {[%emt 0:00:14]} Rf4 {[%emt 0:01:30]} 68. Kg3 {[%emt 0:00:03]} Rf1 {[%emt 0:00:52]} 69. Kg2 {[%emt 0:00:27]} Rb1 {[%emt 0:00:45]} 70. Kg3 {[%emt 0:00:12]} Rb4 {[%emt 0:00:15]} 71. Ra6 {[%emt 0:00:40]} Rc4 {[%emt 0:00:38]} 72. Rb6 {[%emt 0:00:11]} Ra4 {[%emt 0:00:24]} 1/2-1/2

[Event "Mitropa Cup Women 2019"]
[Site "Radenci"]
[Date "2019.06.02"]
[Round "7.9"]
[White "Ragger, Anna-Christina"]
[Black "Havanecz, Bianka"]
[Result "0-1"]
[ECO "D00"]
[WhiteElo "2272"]
[BlackElo "2279"]
[Annotator "ChessBase"]
[PlyCount "80"]
[EventDate "2019.05.27"]
[EventType "team-tourn"]
[EventCountry "SLO"]
[SourceTitle "playchess.com"]
[Source "ChessBase"]
[SourceQuality "1"]
[WhiteTeam "Austria"]
[BlackTeam "Hungary"]
[WhiteTeamCountry "AUT"]
[BlackTeamCountry "HUN"]
[TimeControl "40/5400+30:1800+30"]

1. d4 {[%emt 0:00:00]} Nf6 {[%emt 0:00:00]} 2. Bf4 {[%emt 0:00:00]} d5 {[%emt 0:00:05]} 3. e3 {[%emt 0:00:00]} c5 {[%emt 0:00:15]} 4. c3 {[%emt 0:00:00]} Nc6 {[%emt 0:00:31]} 5. Nd2 {[%emt 0:00:04]} Qb6 {[%emt 0:02:31]} 6. Qb3 {[%emt 0:01:02]} c4 {[%emt 0:00:17]} 7. Qc2 {[%emt 0:00:15]} g6 {[%emt 0:01:51]} 8. e4 {[%emt 0:01:28]} dxe4 {[%emt 0:05:18]} 9. Nxc4 {[%emt 0:11:53]} Qd8 {[%emt 0:00:05]} 10. Be2 {[%emt 0:02:19]} Bg7 {[%emt 0:01:15]} 11. h4 {[%emt 0:15:58]} O-O {[%emt 0:05:10]} 12. O-O-O {[%emt 0:07:10]} b5 {[%emt 0:05:06]} 13. Ne5 {[%emt 0:01:49]} Qb6 {[%emt 0:00:05]} 14. Kb1 {[%emt 0:03:34]} Nd5 {[%emt 0:04:11]} 15. Nxc6 {[%emt 0:06:21]} Qxc6 {[%emt 0:01:18]} 16. Bc1 {[%emt 0:03:24]} h5 {[%emt 0:02:25]} 17. f3 {[%emt 0:04:43]} exf3 {[%emt 0:13:32]} 18. Nxf3 {[%emt 0:00:33]} a5 {[%emt 0:00:48]} 19. Ne5 {[%emt 0:11:02]} Qb7 {[%emt 0:08:40]} 20. g4 {[%emt 0:01:48]} hxg4 {[%emt 0:05:13]} 21. h5 {[%emt 0:01:34]} b4 {[%emt 0:01:56]} 22. c4 {[%emt 0:03:27]} b3 {[%emt 0:00:05]} 23. Qxb3 {[%emt 0:01:32]} Qxb3 {[%emt 0:01:34]} 24. axb3 {[%emt 0:00:03]} Bxe5 {[%emt 0:00:30]} 25. cxd5 {[%emt 0:02:43]} Bf5+ {[%emt 0:01:26]} 26. Bd3 {[%emt 0:01:22]} Bxd3+ {[%emt 0:00:55]} 27. Rxd3 {[%emt 0:00:05]} Bg7 {[%emt 0:00:05]} 28. Bg5 {[%emt 0:06:22]} f6 {[%emt 0:06:09]} 29. Bd2 {[%emt 0:01:53]} Rfd8 {[%emt 0:03:17]} 30. hxg6 {[%emt 0:01:49]} Rxd5 {[%emt 0:00:11]} 31. b4 {[%emt 0:03:34]} a4 {[%emt 0:00:16]} 32. Kc2 {[%emt 0:02:07]} f5 {[%emt 0:00:56]} 33. Re1 {[%emt 0:01:19]} Bf6 {[%emt 0:00:27]} 34. Bh6 {[%emt 0:00:52]} Rad8 {[%emt 0:03:46]} 35. Rf1 {[%emt 0:03:15]} Bxd4 {[%emt 0:02:21]} 36. Rxd4 {[%emt 0:00:42]} Rxd4 {[%emt 0:00:05]} 37. Rxf5 {[%emt 0:00:02]} R4d6 {[%emt 0:00:24]} 38. Rg5 {[%emt 0:00:23]} Rc8+ {[%emt 0:00:12]} 39. Kb1 {[%emt 0:00:07]} Rd1+ {[%emt 0:00:07]} 40. Ka2 {[%emt 0:00:00]} Rh1 {[%emt 0:00:00]} 0-1